bitfinex/quotes_SOLUSD_20220117
["timestamp","ask_amount","ask_price","bid_price","bid_amount"]
[1642406362574,10.709,143.5,143.42,24.0995]
[1642406364074,18.377,143.5,143.36,34.1691]
[1642406364270,24.8286,143.49,143.36,34.1691]
[1642406364472,24.8286,143.49,143.36,40.1691]
[1642406364473,10.462,143.46,143.36,40.1691]
[1642406364870,1.23112288,143.45,143.36,89.24049156]
[1642406365271,1.48112288,143.45,143.36,89.24049156]
[1642406366473,1.48112288,143.45,143.36,40.4191]
[1642406366671,11.94382288,143.45,143.36,40.1691]
[1642406366877,11.94382288,143.45,143.36,30.0491]
[1642406367072,11.94382288,143.45,143.35,22.9839]
[1642406367901,17.94382288,143.45,143.35,22.9839]
[1642406369601,17.94382288,143.45,143.33,24.0498]
[1642406369802,17.94382288,143.45,143.34,6.0]
[1642406370003,17.94382288,143.45,143.33,30.0498]
[1642406370401,10.4659,143.41,143.33,30.0498]
[1642406370600,35.42119532,143.4,143.33,30.0498]
[1642406370802,35.42119532,143.4,143.33,6.0]
[1642406371001,35.67119532,143.4,143.33,6.0]
[1642406371205,35.67119532,143.4,143.31,16.12]
[1642406372302,35.67119532,143.4,143.31,16.37]
[1642406372506,46.13759532,143.4,143.31,16.12]
[1642406372706,46.13759532,143.4,143.31,6.0]
[1642406372903,46.13759532,143.4,143.3,6.0]
[1642406373317,46.13759532,143.4,143.29,28.9572]
[1642406373905,46.13759532,143.4,143.29,75.98110911]
[1642406374505,46.13759532,143.4,143.29,77.15636164]
[1642406374705,46.13759532,143.4,143.29,75.98110911]
[1642406375005,46.13759532,143.4,143.29,76.23110911]
[1642406376106,46.13759532,143.4,143.29,146.13110911]
[1642406376310,46.13759532,143.4,143.29,156.25110911]
[1642406379211,46.13759532,143.4,143.29,86.35110911]
[1642406379411,46.13759532,143.4,143.29,86.10110911]
[1642406382617,46.13759532,143.4,143.29,75.98110911]
[1642406384621,45.63759532,143.4,143.29,75.98110911]
[1642406386022,45.63759532,143.4,143.29,28.9572]
[1642406387523,53.58059532,143.4,143.29,28.9572]
[1642406388325,88.48059532,143.4,143.29,28.9572]
[1642406388527,69.9,143.39,143.29,28.9572]
[1642406388827,13.68046276,143.36,143.29,28.9572]
[1642406389226,13.93046276,143.36,143.29,28.9572]
[1642406390025,24.39966276,143.36,143.29,28.9572]
[1642406390629,24.39966276,143.36,143.29,6.0]
[1642406391527,24.39966276,143.36,143.27,29.3247]
[1642406393029,24.39966276,143.36,143.28,23.5904]
[1642406393426,24.39966276,143.36,143.28,29.5904]
[1642406399358,24.14966276,143.36,143.28,29.5904]
[1642406399858,30.14966276,143.36,143.28,29.5904]
[1642406400458,30.14966276,143.36,143.28,29.8404]
[1642406400659,30.14966276,143.36,143.28,29.5904]
[1642406401459,19.68046276,143.36,143.28,29.8404]
[1642406401759,24.954,143.37,143.28,29.8404]
[1642406402459,10.4679,143.38,143.28,29.8404]
[1642406402658,6.0,143.37,143.28,29.8404]
[1642406402860,39.50706453,143.37,143.28,29.8404]
[1642406403059,39.75706453,143.37,143.28,29.8404]
[1642406403258,10.4664,143.4,143.28,29.8404]
[1642406403462,10.4664,143.4,143.28,31.0172263]
[1642406404261,34.31312838,143.39,143.28,31.0172263]
[1642406404461,34.31312838,143.39,143.28,41.4833263]
[1642406404963,34.31312838,143.39,143.28,40.3065]
[1642406405168,34.56312838,143.39,143.28,40.3065]
[1642406409167,34.56312838,143.39,143.28,52.49780851]
[1642406410570,34.56312838,143.39,143.28,53.67463481]
[1642406413674,0.25,143.39,143.28,53.67463481]
[1642406413872,10.7164,143.4,143.28,53.67463481]
[1642406414472,36.02421988,143.39,143.28,53.67463481]
[1642406414672,10.7164,143.4,143.28,123.57463481]
[1642406415072,10.7164,143.4,143.28,53.67463481]
[1642406415573,48.813658,143.4,143.28,53.67463481]
[1642406415773,0.25,143.4,143.28,64.72655206]
[1642406415976,10.715,143.42,143.28,134.62655206]
[1642406416573,10.465,143.42,143.28,134.62655206]
[1642406416973,62.157471,143.43,143.28,134.62655206]
[1642406417372,39.184371,143.43,143.28,134.62655206]
[1642406419275,47.2654,143.45,143.28,134.62655206]
[1642406419678,6.0,143.45,143.28,141.63679019]
[1642406419880,0.25,143.45,143.29,0.26]
[1642406420109,0.25,143.45,143.33,10.4606]
[1642406420280,588.87786242,143.46,143.35,69.9]
[1642406420479,542.66715461,143.46,143.36,24.5307]
[1642406420880,542.66715461,143.46,143.36,30.7807]
[1642406421081,542.66715461,143.46,143.36,100.6807]
[1642406421483,582.04278952,143.46,143.37,35.07423415]
[1642406421683,542.66715461,143.46,143.38,22.6544]
[1642406421882,542.66715461,143.46,143.38,28.6544]
[1642406422083,542.66715461,143.46,143.38,28.9044]
[1642406422880,542.66715461,143.46,143.38,98.8044]
[1642406423081,34.6439,143.5,143.38,98.8044]
[1642406423282,34.8939,143.5,143.38,98.8044]
[1642406423981,89.41937155,143.5,143.38,98.8044]
[1642406424184,40.8939,143.5,143.38,98.8044]
[1642406424382,34.8939,143.5,143.38,109.2632]
[1642406425683,40.8939,143.5,143.38,109.2632]
[1642406426389,34.8939,143.5,143.38,109.2632]
[1642406426792,24.4346,143.5,143.38,109.2632]
[1642406429319,0.25,143.5,143.38,109.2632]
[1642406429517,0.25,143.5,143.38,133.15]
[1642406429717,16.7077,143.52,143.38,133.15]
[1642406431118,10.4577,143.52,143.38,133.15]
[1642406431317,24.8618,143.51,143.38,133.15]
[1642406431618,24.8618,143.51,143.38,134.33194346]
[1642406432220,24.8618,143.51,143.38,146.52325197]
[1642406432520,482.59986787,143.54,143.38,146.52325197]
[1642406432920,488.59986787,143.54,143.38,146.52325197]
[1642406433320,36.46398782,143.52,143.38,146.52325197]
[1642406433724,36.71398782,143.52,143.38,146.52325197]
[1642406442833,0.25,143.52,143.38,146.52325197]
[1642406443229,23.6197,143.53,143.38,146.52325197]
[1642406446433,23.3697,143.53,143.38,146.52325197]
[1642406448334,23.6197,143.53,143.38,146.52325197]
[1642406452236,23.3697,143.53,143.38,157.57516922]
[1642406452637,3.95863144,143.54,143.38,163.72616922]
[1642406452837,3.95863144,143.54,143.39,0.26]
[1642406453038,3.95863144,143.55,143.43,10.4525]
[1642406453238,3.95863144,143.55,143.44,69.9]
[1642406453438,3.95863144,143.55,143.44,77.33194346]
[1642406453641,3.95863144,143.55,143.45,41.45324705]
[1642406453865,4.20863144,143.55,143.46,24.8839]
[1642406454040,0.25,143.55,143.46,24.8839]
[1642406454238,24.9047,143.55,143.48,47.08991785]
[1642406454440,24.9047,143.55,143.49,23.1543]
[1642406454839,24.9047,143.55,143.49,23.4043]
[1642406455139,24.9047,143.55,143.49,23.1543]
[1642406455338,24.9047,143.55,143.49,23.4043]
[1642406459443,24.9047,143.55,143.49,0.25]
[1642406459846,24.9047,143.55,143.47,10.4519]
[1642406459847,24.9047,143.55,143.47,16.7019]
[1642406460747,24.9047,143.55,143.48,48.02105883]
[1642406460948,24.9047,143.55,143.48,54.27105883]
[1642406461156,24.9047,143.55,143.48,78.15595883]
[1642406461550,3.95863144,143.57,143.48,72.15595883]
[1642406461749,0.25,143.56,143.48,72.15595883]
[1642406462149,43.77197229,143.56,143.48,141.91595883]
[1642406462753,0.25,143.56,143.48,141.91595883]
[1642406462950,4.20863144,143.57,143.48,158.36725883]
[1642406464352,6.55275028,143.56,143.48,147.91595883]
[1642406464852,6.80275028,143.56,143.48,147.91595883]
[1642406465654,0.25,143.56,143.48,147.91595883]
[1642406465857,28.14253144,143.58,143.48,147.91595883]
[1642406466257,34.14253144,143.58,143.48,30.1349]
[1642406466659,1.9836146,143.55,143.48,30.1349]
[1642406466857,2.2336146,143.55,143.48,6.25]
[1642406467057,2.2336146,143.55,143.48,6.0]
[1642406467256,48.58191731,143.54,143.45,75.76]
[1642406467458,48.83191731,143.54,143.45,75.76]
[1642406468460,1.9836146,143.53,143.45,76.01]
[1642406468885,2.2336146,143.53,143.45,76.01]
[1642406469287,1.9836146,143.52,143.45,76.01]
[1642406470588,1.9836146,143.52,143.46,22.5383]
[1642406470785,1.9836146,143.52,143.47,69.76]
[1642406470987,1.9836146,143.52,143.46,28.7883]
[1642406471187,1.9836146,143.52,143.47,42.26442369]
[1642406471390,1.9836146,143.52,143.47,48.51442369]
[1642406471585,1.9836146,143.52,143.47,118.27442369]
[1642406471789,1.9836146,143.52,143.47,6.25]
[1642406472186,25.0983146,143.53,143.47,0.25]
[1642406472589,25.0983146,143.53,143.46,22.7883]
[1642406472789,1.9836146,143.52,143.46,0.25]
[1642406473188,1.9836146,143.52,143.42,22.8003]
[1642406473388,1.9836146,143.52,143.42,39.2559]
[1642406473389,2.2336146,143.52,143.42,39.2559]
[1642406473688,1.9836146,143.52,143.42,34.43399022]
[1642406474089,26.38567902,143.53,143.42,34.43399022]
[1642406474090,1.9836146,143.51,143.42,34.43399022]
[1642406474690,1.9836146,143.51,143.42,34.68399022]
[1642406474890,1.9836146,143.51,143.42,40.68399022]
[1642406475191,41.40409953,143.5,143.42,40.43399022]
[1642406475592,41.40409953,143.5,143.42,29.97839022]
[1642406476392,43.63771413,143.5,143.42,23.0503]
[1642406476593,43.63771413,143.5,143.42,29.0503]
[1642406478194,43.63771413,143.5,143.42,23.0503]
[1642406478996,43.63771413,143.5,143.4,12.19130851]
[1642406479194,43.63771413,143.5,143.38,1.91265023]
[1642406479195,22.7177,143.49,143.38,1.91265023]
[1642406479496,22.7177,143.49,143.38,32.84465023]
[1642406479497,22.9677,143.49,143.38,32.84465023]
[1642406479695,22.9677,143.49,143.38,26.84465023]
[1642406479894,22.9677,143.49,143.38,32.84465023]
[1642406480098,24.9513146,143.49,143.38,30.932]
[1642406480696,24.9513146,143.49,143.38,32.36009022]
[1642406480896,30.9513146,143.49,143.38,32.36009022]
[1642406481898,30.9513146,143.49,143.38,32.11009022]
[1642406482900,1.9836146,143.48,143.38,32.11009022]
[1642406483400,2.2336146,143.48,143.38,32.36009022]
[1642406483601,7.19755855,143.47,143.38,32.36009022]
[1642406484100,7.44755855,143.47,143.38,32.36009022]
[1642406484500,7.44755855,143.47,143.38,7.17809022]
[1642406484704,7.44755855,143.47,143.39,69.76]
[1642406484900,7.44755855,143.47,143.39,75.76]
[1642406485504,7.44755855,143.47,143.4,37.69817178]
[1642406485704,7.44755855,143.47,143.39,76.93809022]
[1642406485904,7.44755855,143.47,143.39,77.18809022]
[1642406486704,7.44755855,143.47,143.39,123.69859659]
[1642406487105,0.25,143.47,143.39,123.69859659]
[1642406487308,30.9513146,143.49,143.39,123.69859659]
[1642406490315,30.9513146,143.49,143.39,134.15669659]
[1642406492615,30.9513146,143.49,143.41,69.76]
[1642406493013,30.9513146,143.49,143.42,43.19970005]
[1642406494121,30.9513146,143.49,143.41,69.76]
[1642406494317,28.9677,143.49,143.41,69.76]
[1642406495139,28.9677,143.49,143.41,116.83365454]
[1642406495343,28.9677,143.49,143.41,122.83365454]
[1642406495542,30.9513146,143.49,143.41,122.83365454]
[1642406502847,1.9836146,143.48,143.41,122.83365454]
[1642406503248,2.2336146,143.48,143.41,75.76]
[1642406503449,2.2336146,143.48,143.4,24.7627]
[1642406504251,7.54801437,143.47,143.37,53.11969353]
[1642406504452,7.79801437,143.47,143.38,23.1178]
[1642406504850,7.79801437,143.47,143.38,29.1178]
[1642406505455,7.79801437,143.47,143.38,23.1178]
[1642406505654,1.9836146,143.46,143.38,23.1178]
[1642406505850,2.2336146,143.46,143.39,35.48872923]
[1642406506252,2.2336146,143.46,143.39,41.48872923]
[1642406506851,2.2336146,143.46,143.39,6.0]
[1642406507054,2.2336146,143.46,143.37,69.76]
[1642406507254,24.7696146,143.46,143.38,6.0]
[1642406507456,24.7696146,143.46,143.37,75.76]
[1642406508657,24.7696146,143.46,143.37,100.0096]
[1642406510663,1.9836146,143.45,143.37,100.0096]
[1642406510862,2.2336146,143.45,143.37,100.0096]
[1642406511066,41.05364371,143.44,143.37,100.0096]
[1642406511463,41.30364371,143.44,143.37,100.0096]
[1642406512365,0.25,143.44,143.37,100.0096]
[1642406512866,2.2336146,143.45,143.37,100.0096]
[1642406513269,44.80526855,143.44,143.37,100.0096]
[1642406513469,0.25,143.44,143.37,100.0096]
[1642406514669,46.33411458,143.45,143.37,100.0096]
[1642406515770,44.35049998,143.45,143.37,100.0096]
[1642406516471,44.35049998,143.45,143.37,94.0096]
[1642406517873,44.35049998,143.45,143.37,101.22358015]
[1642406518476,44.35049998,143.45,143.37,100.0096]
[1642406518679,44.35049998,143.45,143.37,30.2496]
[1642406518879,1.14224312,143.44,143.37,30.2496]
[1642406519075,1.14224312,143.44,143.37,24.2496]
[1642406519275,1.39224312,143.44,143.34,1.91265023]
[1642406519477,1.39224312,143.44,143.35,22.9506]
[1642406519676,1.39224312,143.44,143.36,40.46969867]
[1642406519876,1.39224312,143.44,143.35,22.9506]
[1642406521078,3.37585772,143.44,143.35,22.9506]
[1642406522781,3.37585772,143.44,143.35,28.9506]
[1642406522982,3.37585772,143.44,143.35,22.9506]
[1642406523183,3.37585772,143.44,143.35,98.7106]
[1642406523384,3.37585772,143.44,143.35,98.9606]
[1642406524086,3.12585772,143.44,143.35,98.9606]
[1642406524887,3.12585772,143.44,143.35,92.9606]
[1642406525092,1.14224312,143.44,143.35,92.9606]
[1642406525990,1.39224312,143.44,143.35,92.9606]
[1642406526191,0.64224312,143.44,143.35,92.9606]
[1642406526392,0.89224312,143.44,143.35,92.9606]
[1642406526990,2.87585772,143.44,143.35,98.9606]
[1642406527191,2.87585772,143.44,143.35,92.9606]
[1642406527592,2.87585772,143.44,143.35,22.9506]
[1642406529311,1.9836146,143.43,143.35,22.9506]
[1642406529513,4.5011581,143.42,143.35,22.9506]
[1642406529912,4.7511581,143.42,143.35,22.9506]
[1642406531113,4.7511581,143.42,143.3,12.37715023]
[1642406531314,103.0343581,143.42,143.3,1.91265023]
[1642406531516,97.0343581,143.42,143.3,1.91265023]
[1642406531714,1.70077588,143.41,143.3,1.91265023]
[1642406531915,1.95077588,143.41,143.3,1.91265023]
[1642406532314,10.4683,143.39,143.3,1.91265023]
[1642406532818,1.70077588,143.38,143.3,1.91265023]
[1642406533025,1.70077588,143.38,143.24,1.91265023]
[1642406533026,41.06387695,143.37,143.24,1.91265023]
[1642406533517,10.47,143.36,143.24,1.91265023]
[1642406533716,10.47,143.36,143.24,7.91265023]
[1642406534018,10.72,143.36,143.24,8.16265023]
[1642406534217,35.2812,143.36,143.25,24.3641]
[1642406534416,10.72,143.36,143.25,38.6941]
[1642406534617,12.7036146,143.36,143.25,38.6941]
[1642406534916,18.7036146,143.36,143.25,38.6941]
[1642406535217,8.2336146,143.36,143.25,38.6941]
[1642406535416,31.8990146,143.36,143.25,38.6941]
[1642406535617,29.9154,143.36,143.25,30.6141]
[1642406536818,6.25,143.36,143.25,30.6141]
[1642406537222,0.25,143.36,143.26,69.76]
[1642406537418,43.29749155,143.37,143.27,24.4374]
[1642406537621,49.29749155,143.37,143.27,24.4374]
[1642406537918,47.31387695,143.37,143.27,24.6874]
[1642406538119,71.80177695,143.37,143.27,24.6874]
[1642406538921,71.80177695,143.37,143.27,24.4374]
[1642406539223,82.27117695,143.37,143.27,24.4374]
[1642406540322,83.97195283,143.37,143.27,24.4374]
[1642406541124,83.97195283,143.37,143.25,6.0]
[1642406541325,83.97195283,143.37,143.25,23.8286]
[1642406541827,83.97195283,143.37,143.25,29.8286]
[1642406542926,83.97195283,143.37,143.25,30.0786]
[1642406543326,83.97195283,143.37,143.25,29.8286]
[1642406543527,83.97195283,143.37,143.25,6.0]
[1642406543929,83.97195283,143.37,143.2,75.76]
[1642406544130,83.97195283,143.37,143.21,24.5742]
[1642406544331,83.97195283,143.37,143.21,100.5842]
[1642406544529,83.97195283,143.37,143.23,69.76]
[1642406544728,83.97195283,143.37,143.24,24.9478]
[1642406544929,83.97195283,143.37,143.24,31.1978]
[1642406547331,83.97195283,143.37,143.22,44.08977815]
[1642406547530,83.97195283,143.37,143.23,0.25]
[1642406547732,69.76,143.36,143.22,44.08977815]
[1642406547932,10.4725,143.33,143.22,44.33977815]
[1642406548131,30.95208113,143.32,143.22,44.33977815]
[1642406548331,31.20208113,143.32,143.22,44.33977815]
[1642406548532,31.20208113,143.32,143.2,33.034]
[1642406548833,51.09995701,143.32,143.2,22.5625]
[1642406549634,41.67518113,143.32,143.21,41.03039065]
[1642406549834,34.1374,143.32,143.21,41.03039065]
[1642406550132,35.83817588,143.32,143.22,23.6756]
[1642406550536,25.11507588,143.32,143.22,23.6756]
[1642406550835,23.4143,143.32,143.22,23.9256]
[1642406551135,1.70077588,143.31,143.22,23.6756]
[1642406551337,23.4143,143.32,143.22,23.6756]
[1642406551536,6.0,143.31,143.22,23.6756]
[1642406551737,12.17447588,143.31,143.22,23.6756]
[1642406551937,18.42447588,143.31,143.22,23.6756]
[1642406553441,18.42447588,143.31,143.21,41.03039065]
[1642406553842,18.42447588,143.31,143.22,24.1906]
[1642406555843,18.42447588,143.31,143.21,41.03039065]
[1642406556245,24.5993,143.3,143.21,41.03039065]
[1642406556446,35.3238,143.3,143.21,41.03039065]
[1642406558247,35.0738,143.3,143.21,41.03039065]
[1642406558447,6.79800488,143.29,143.2,22.5909]
[1642406558650,17.27310488,143.29,143.18,1.91265023]
[1642406559649,24.9096,143.28,143.18,1.91265023]
[1642406559847,10.4774,143.26,143.17,24.0885]
[1642406560046,10.4774,143.26,143.16,40.06358502]
[1642406560047,10.4774,143.26,143.16,1.91265023]
[1642406560249,10.7274,143.26,143.16,1.91265023]
[1642406561049,10.7274,143.26,143.16,40.5747165]
[1642406561456,10.7274,143.26,143.16,38.66206627]
[1642406561848,10.7274,143.26,143.15,1.91265023]
[1642406562050,24.3891,143.25,143.15,7.91265023]
[1642406562351,10.4792,143.24,143.15,7.91265023]
[1642406562773,10.7292,143.24,143.15,6.0]
[1642406562972,45.57175865,143.24,143.16,45.47416566]
[1642406563874,51.57175865,143.24,143.16,45.47416566]
[1642406564375,51.57175865,143.24,143.14,28.9828]
[1642406564575,1.15674041,143.21,143.14,28.9828]
[1642406564977,1.40674041,143.21,143.14,28.9828]
[1642406565575,6.0,143.24,143.14,29.2328]
[1642406565780,6.0,143.24,143.14,37.5008]
[1642406565978,6.25,143.24,143.15,43.09569866]
[1642406566177,0.25,143.24,143.16,10.4745]
[1642406566377,1.9836146,143.3,143.17,94.5818]
[1642406566579,12.4581146,143.3,143.17,94.5818]
[1642406566778,18.4581146,143.3,143.17,94.8318]
[1642406566977,18.4581146,143.3,143.17,100.8318]
[1642406567178,18.4581146,143.3,143.17,94.8318]
[1642406567378,44.53171197,143.29,143.17,35.5459]
[1642406567779,44.78171197,143.29,143.17,35.5459]
[1642406567980,44.78171197,143.29,143.17,105.3059]
[1642406568682,1.43960981,143.22,143.17,35.2959]
[1642406568882,1.68960981,143.22,143.17,24.8218]
[1642406569082,1.68960981,143.22,143.16,6.0]
[1642406569283,1.68960981,143.22,143.15,7.91265023]
[1642406569580,1.68960981,143.22,143.15,1.91265023]
[1642406569885,4.06994611,143.21,143.14,1.91265023]
[1642406570084,1.68960981,143.22,143.14,1.91265023]
[1642406570284,0.25,143.21,143.14,1.91265023]
[1642406570484,1.68960981,143.22,143.14,1.91265023]
[1642406570884,1.68960981,143.22,143.14,24.90425023]
[1642406571082,47.66466381,143.22,143.14,61.06751355]
[1642406571393,1.68960981,143.22,143.14,59.15486332]
[1642406571586,1.9836146,143.27,143.14,59.15486332]
[1642406571883,1.9836146,143.27,143.14,65.15486332]
[1642406572285,36.2794955,143.27,143.14,65.15486332]
[1642406572484,40.2958809,143.27,143.14,65.15486332]
[1642406572689,40.2958809,143.27,143.14,65.40486332]
[1642406572890,33.3986,143.26,143.14,75.63116332]
[1642406573293,33.6486,143.26,143.14,145.39116332]
[1642406573489,33.6486,143.26,143.14,75.63116332]
[1642406573689,33.6486,143.26,143.14,63.93410083]
[1642406575592,33.6486,143.26,143.14,28.9916]
[1642406578193,33.3986,143.26,143.14,28.9916]
[1642406578394,10.4772,143.26,143.14,29.2416]
[1642406578792,34.2958809,143.27,143.15,36.50998167]
[1642406578992,34.2958809,143.27,143.16,93.5001]
[1642406579393,34.2958809,143.27,143.16,29.9901]
[1642406579797,34.2958809,143.27,143.16,29.7401]
[1642406579991,40.2958809,143.27,143.16,29.7401]
[1642406580194,34.21,143.26,143.16,29.7401]
[1642406580395,34.46,143.26,143.16,29.7401]
[1642406580994,34.46,143.26,143.16,23.7401]
[1642406581194,34.46,143.26,143.16,29.7401]
[1642406582599,34.46,143.26,143.13,26.68125023]
[1642406582797,10.4809,143.22,143.14,24.7209]
[1642406583198,10.7309,143.22,143.14,24.7209]
[1642406583596,14.30577718,143.21,143.14,24.7209]
[1642406583995,14.55577718,143.21,143.14,24.7209]
[1642406584995,10.4813,143.2,143.14,24.7209]
[1642406585197,14.55577718,143.21,143.14,24.7209]
[1642406585897,23.4193,143.24,143.14,24.7209]
[1642406586096,36.9198146,143.25,143.14,24.7209]
[1642406586496,36.9198146,143.25,143.14,94.4809]
[1642406586699,1.9836146,143.26,143.14,94.7309]
[1642406586898,45.10144472,143.25,143.14,30.7209]
[1642406587099,96.56344472,143.25,143.1,1.91265023]
[1642406587299,23.8768,143.24,143.1,1.91265023]
[1642406587498,25.57757588,143.24,143.1,1.91265023]
[1642406587701,1.70077588,143.23,143.1,1.91265023]
[1642406587902,10.4838,143.2,143.1,1.91265023]
[1642406588102,3.50021336,143.19,143.09,44.72971405]
[1642406588297,5.20098924,143.19,143.09,1.91265023]
[1642406588498,5.45098924,143.19,143.09,1.91265023]
[1642406588698,1.70077588,143.18,143.09,1.91265023]
[1642406588932,0.25,143.18,143.09,1.91265023]
[1642406589132,0.25,143.18,143.07,22.8627]
[1642406589331,0.25,143.18,143.07,28.8627]
[1642406589727,0.25,143.18,143.08,39.77065075]
[1642406589928,44.68284041,143.2,143.09,24.8837]
[1642406590428,1.9836146,143.22,143.09,31.1337]
[1642406590734,6.0,143.2,143.09,25.1337]
[1642406590929,6.0,143.2,143.09,31.1337]
[1642406591129,1.9836146,143.22,143.09,31.1337]
[1642406591331,49.46617633,143.22,143.09,54.38]
[1642406591529,53.48256173,143.22,143.09,54.38]
[1642406591729,10.4803,143.21,143.09,54.38]
[1642406591930,10.4803,143.21,143.09,54.13]
[1642406593335,10.7303,143.21,143.09,54.38]
[1642406593532,10.7303,143.21,143.09,64.8599]
[1642406593932,10.4791,143.23,143.09,64.8599]
[1642406594134,514.77102916,143.25,143.09,72.7409]
[1642406594335,514.77102916,143.25,143.1,69.76]
[1642406594734,39.63700719,143.24,143.1,76.01]
[1642406594935,39.63700719,143.24,143.11,24.6845]
[1642406595335,50.11510719,143.24,143.13,44.78714245]
[1642406595535,50.11510719,143.24,143.14,23.3569]
[1642406595938,50.11510719,143.24,143.14,23.6069]
[1642406596337,10.7281,143.24,143.14,23.6069]
[1642406596536,514.77102916,143.25,143.14,31.7559]
[1642406596937,512.78741456,143.25,143.14,37.7559]
[1642406597138,1.9836146,143.26,143.14,37.7559]
[1642406597338,1.9836146,143.26,143.15,69.76]
[1642406597538,1.9836146,143.26,143.18,47.71598521]
[1642406597737,1.9836146,143.26,143.19,24.0783]
[1642406597938,41.75837647,143.29,143.19,24.0783]
[1642406598938,52.23277647,143.29,143.19,24.0783]
[1642406599638,52.48277647,143.29,143.19,24.0783]
[1642406599842,24.9332146,143.28,143.19,24.0783]
[1642406600237,1.70077588,143.27,143.19,24.0783]
[1642406600445,1.95077588,143.27,143.19,24.0783]
[1642406600840,3.93439048,143.27,143.19,24.0783]
[1642406601043,1.70077588,143.26,143.19,24.0783]
[1642406601443,12.42817588,143.26,143.19,24.0783]
[1642406601641,12.42817588,143.26,143.14,23.7171]
[1642406601840,26.51717588,143.25,143.15,24.1165]
[1642406602040,1.70077588,143.25,143.15,24.1165]
[1642406602642,8.82689621,143.24,143.15,24.1165]
[1642406603242,9.07689621,143.24,143.15,24.1165]
[1642406603643,10.77767209,143.24,143.15,24.1165]
[1642406603841,16.77767209,143.24,143.15,24.1165]
[1642406604042,27.25587209,143.24,143.15,24.1165]
[1642406604843,10.77767209,143.24,143.15,24.3665]
[1642406605044,10.77767209,143.24,143.15,24.1165]
[1642406605443,16.77767209,143.24,143.15,24.3665]
[1642406606543,27.25567209,143.24,143.15,24.1165]
[1642406607548,27.25567209,143.24,143.11,12.39095023]
[1642406607745,10.4791,143.22,143.12,19.9171]
[1642406607945,10.7291,143.22,143.12,19.9171]
[1642406608146,10.7291,143.22,143.12,30.3949]
[1642406608546,10.7291,143.22,143.12,69.18560317]
[1642406608746,12.42987588,143.22,143.12,69.18560317]
[1642406609349,10.7291,143.22,143.12,69.18560317]
[1642406609549,1.70077588,143.21,143.12,58.70780317]
[1642406609950,12.43027588,143.21,143.12,58.70780317]
[1642406610551,10.7295,143.21,143.12,14.9171]
[1642406610753,1.70077588,143.2,143.12,14.9171]
[1642406610952,1.95077588,143.2,143.12,14.9171]
[1642406611353,1.70077588,143.19,143.07,26.04645023]
[1642406611556,39.64974421,143.18,143.08,63.33001791]
[1642406611955,52.08252009,143.18,143.08,69.58001791]
[1642406612156,12.43277588,143.18,143.08,69.58001791]
[1642406612354,10.732,143.18,143.08,69.58001791]
[1642406612554,0.25,143.18,143.08,69.58001791]
[1642406613256,46.16899658,143.2,143.08,64.58001791]
[1642406613456,56.89909658,143.2,143.08,75.06061791]
[1642406614658,58.59987246,143.2,143.08,75.06061791]
[1642406615385,64.59987246,143.2,143.08,75.06061791]
[1642406615787,64.59987246,143.2,143.08,144.82061791]
[1642406615788,62.89909658,143.2,143.08,144.82061791]
[1642406616183,64.59987246,143.2,143.08,144.82061791]
[1642406616688,64.59987246,143.2,143.08,154.94061791]
[1642406617584,64.59987246,143.2,143.08,85.18061791]
[1642406618185,22.5288,143.19,143.08,85.18061791]
[1642406618387,33.2601,143.19,143.08,85.18061791]
[1642406619985,39.2601,143.19,143.08,85.18061791]
[1642406620789,39.2601,143.19,143.09,69.76]
[1642406620989,39.2601,143.19,143.09,80.24]
[1642406621189,39.2601,143.19,143.1,22.9076]
[1642406621389,39.2601,143.19,143.1,23.1576]
[1642406621698,39.2601,143.19,143.1,92.9176]
[1642406622192,39.2601,143.19,143.1,18.1576]
[1642406622800,1.70077588,143.18,143.1,18.1576]
[1642406622992,1.70077588,143.18,143.1,24.1576]
[1642406623193,0.25,143.18,143.1,24.1576]
[1642406623391,0.25,143.18,143.1,18.1576]
[1642406624295,1.95077588,143.18,143.1,18.1576]
[1642406624493,1.70077588,143.18,143.1,18.1576]
[1642406624693,0.25,143.18,143.1,18.1576]
[1642406625295,10.7318,143.18,143.1,17.9076]
[1642406625494,12.43257588,143.18,143.1,17.9076]